fUSD/lending_fUSD_20240803
["ID","MTS","AMOUNT","RATE_DAILY","PERIOD"]
[333986245,1722666697138,-24317.71,0.00016986,2]
[333986246,1722666697147,-916.334531,0.00016986,2]
[333986247,1722666697157,-500.0,0.00016986,2]
[333986248,1722666697166,-916.334531,0.00016986,2]
[333986249,1722666697176,-10000.0,0.00016986,2]
[333986250,1722666697185,-10000.0,0.00016986,2]
[333986251,1722666697196,-510.04591172,0.00016986,2]
[333986252,1722666697206,-500.0,0.00016986,2]
[333986253,1722666697215,-500.0,0.00016986,2]
[333986254,1722666697225,-500.0,0.00016986,2]
[333986255,1722666697235,-2959.52,0.00016986,2]
[333986256,1722666697245,-8359.0,0.00016986,2]
[333986257,1722666697254,-1381.62,0.00016986,2]
[333986258,1722666697264,-500.0,0.00016986,2]
[333986259,1722666697275,-500.0,0.00016986,2]
[333986260,1722666697284,-520.57300531,0.00016986,2]
[333986261,1722666697294,-1125.68,0.00016986,2]
[333986262,1722666697303,-916.334531,0.00016986,2]
[333986263,1722666697313,-2625.72,0.00016986,2]
[333986264,1722666697322,-916.334531,0.00016986,2]
[333986265,1722666697331,-500.0,0.00016986,2]
[333986266,1722666697341,-541.08,0.00016986,2]
[333986267,1722666697351,-10000.0,0.00016986,2]
[333986268,1722666697361,-500.0,0.00016986,2]
[333986269,1722666697371,-10000.0,0.00016986,2]
[333986270,1722666697380,-204.79639611,0.00016986,2]
[333986271,1722666697389,-1606.59,0.00016986,2]
[333986272,1722666697399,-4129.44,0.00016986,2]
[333986273,1722666697408,-500.0,0.00016986,2]
[333986274,1722666697418,-765.03,0.00016986,2]
[333986275,1722666697427,-500.0,0.00016986,2]
[333986276,1722666697437,-500.0,0.00016986,2]
[333986277,1722666697447,-10000.0,0.00016986,2]
[333986278,1722666697458,-10000.0,0.00016986,2]
[333986279,1722666697467,-513.4243682,0.00016986,2]
[333986280,1722666697477,-500.0,0.00016986,2]
[333986281,1722666697487,-1071.89,0.00016986,2]
[333986282,1722666697496,-8009.82,0.00016986,2]
[333986283,1722666697505,-500.0,0.00016986,2]
[333986284,1722666697515,-500.0,0.00016986,2]
[333986285,1722666697525,-500.0,0.00016986,2]
[333986286,1722666697534,-4309.68,0.00016986,2]
[333986287,1722666697543,-500.0,0.00016986,2]
[333986288,1722666697553,-677.22,0.00016986,2]
[333986289,1722666697562,-155.285,0.00016986,2]
[333986290,1722666697572,-155.285,0.00016986,2]
[333986291,1722666697581,-500.0,0.00016986,2]
[333986292,1722666697591,-500.0,0.00016986,2]
[333986293,1722666697600,-500.0,0.00016986,2]
[333986294,1722666697610,-3498.32,0.00016986,2]
[333986295,1722666697619,-1008.21,0.00016986,2]
[333986296,1722666697629,-155.285,0.00016986,2]
[333986297,1722666697643,-500.0,0.00016986,2]
[333986298,1722666697653,-155.285,0.00016986,2]
[333986299,1722666697662,-500.0,0.00016986,2]
[333986300,1722666697672,-2091.29,0.00016986,2]
[333986301,1722666697683,-678.45,0.00016986,2]
[333986302,1722666697692,-500.0,0.00016986,2]
[333986303,1722666697702,-500.0,0.00016986,2]
[333986304,1722666697713,-3261.4,0.00016986,2]
[333986305,1722666697722,-500.0,0.00016986,2]
[333986306,1722666697731,-2329.21,0.00016986,2]
[333986307,1722666697741,-2884.474118,0.00016986,2]
[333986308,1722666697751,-500.0,0.00016986,2]
[333986309,1722666697760,-1982.62,0.00016986,2]
[333986310,1722666697770,-2884.474118,0.00016986,2]
[333986311,1722666697779,-6585.94,0.00016986,2]
[333986312,1722666697789,-532.0,0.00016986,2]
[333986313,1722666697798,-2884.474118,0.00016986,2]
[333986314,1722666697807,-2884.474118,0.00016986,2]
[333986315,1722666697817,-2347.25,0.00016986,2]
[333986316,1722666697827,-3237.49,0.00016986,2]
[333986317,1722666697836,-595.79,0.00016986,2]
[333986318,1722666697846,-1438.93,0.00016986,2]
[333986319,1722666697855,-500.0,0.00016986,2]
[333986320,1722666697865,-500.0,0.00016986,2]
[333986321,1722666697875,-500.0,0.00016986,2]
[333986322,1722666697884,-1558.03,0.00016986,2]
[333986323,1722666697894,-12013.62,0.00016986,2]
[333986324,1722666697903,-3194.48,0.00016986,2]
[333986325,1722666697913,-580.15294119,0.00016986,2]
[333986326,1722666697924,-2240.39,0.00016986,2]
[333986327,1722666697934,-1275.84,0.00016986,2]
[333986328,1722666697944,-500.0,0.00016986,2]
[333986329,1722666697954,-1245.88,0.00016986,2]
[333986330,1722666697963,-500.0,0.00016986,2]
[333986331,1722666697974,-869.05,0.00016986,2]
[333986332,1722666697985,-500.0,0.00016986,2]
[333986333,1722666697994,-500.0,0.00016986,2]
[333986334,1722666698005,-3558.7,0.00016986,2]
[333986335,1722666698015,-500.0,0.00016986,2]
[333986336,1722666698029,-500.0,0.00016986,2]
[333986337,1722666698039,-1516.63,0.00016986,2]
[333986338,1722666698050,-151.767457,0.00016986,2]
[333986339,1722666698059,-4848.71,0.00016986,2]
[333986340,1722666698069,-2444.23,0.00016986,2]
[333986341,1722666698078,-500.0,0.00016986,2]
[333986342,1722666698088,-2528.58,0.00016986,2]
[333986343,1722666698097,-7111.63,0.00016986,2]
[333986344,1722666698107,-1234.51,0.00016986,2]
[333986345,1722666698116,-500.0,0.00016986,2]
[333986346,1722666698125,-1577.42,0.00016986,2]
[333986347,1722666698134,-500.0,0.00016986,2]
[333986348,1722666698144,-3976.74,0.00016986,2]
[333986349,1722666698153,-485.41282291,0.00016986,2]
[333986350,1722666698162,-914.84,0.00016986,2]
[333986351,1722666698171,-500.0,0.00016986,2]
[333986352,1722666698181,-529.24835792,0.00016986,2]
[333986353,1722666698190,-1179.29,0.00016986,2]
[333986354,1722666698200,-500.0,0.00016986,2]
[333986355,1722666698209,-2341.98,0.00016986,2]
[333986356,1722666698219,-522.63,0.00016986,2]
[333986357,1722666698229,-2827.3,0.00016986,2]
[333986358,1722666698239,-1379.48,0.00016986,2]
[333986359,1722666698248,-13569.7,0.00016986,2]
[333986360,1722666698257,-1254.92,0.00016986,2]
[333986361,1722666698266,-500.0,0.00016986,2]
[333986362,1722666698275,-508.47468941,0.00016986,2]
[333986363,1722666698284,-989.03,0.00016986,2]
[333986364,1722666698294,-867.22,0.00016986,2]
[333986365,1722666698303,-1520.15,0.00016986,2]
[333986366,1722666698312,-486.09611196,0.00016986,2]
[333986367,1722666698322,-500.0,0.00016986,2]
[333986368,1722666698331,-500.0,0.00016986,2]
[333986369,1722666698341,-500.0,0.00016986,2]
[333986370,1722666698351,-941.33,0.00016986,2]
[333986371,1722666698360,-4544.83,0.00016986,2]
[333986372,1722666698370,-1100.73,0.00016986,2]
[333986373,1722666698380,-797.96,0.00016986,2]
[333986374,1722666698389,-500.0,0.00016986,2]
[333986375,1722666698399,-799.61,0.00016986,2]
[333986376,1722666698409,-457.09339124,0.00016986,2]
[333986377,1722666698420,-500.0,0.00016986,2]
[333986378,1722666698430,-500.0,0.00016986,2]
[333986379,1722666698439,-5638.64,0.00016986,2]
[333986380,1722666698449,-1242.0,0.00016986,2]
[333986381,1722666698459,-500.0,0.00016986,2]
[333986382,1722666698469,-500.0,0.00016986,2]
[333986383,1722666698479,-500.0,0.00016986,2]
[333986384,1722666698489,-1488.46,0.00016986,2]
[333986385,1722666698499,-500.0,0.00016986,2]
[333986386,1722666698508,-560.97,0.00016986,2]
[333986387,1722666698518,-502.89655372,0.00016986,2]
[333986388,1722666698528,-500.0,0.00016986,2]
[333986389,1722666698537,-500.0,0.00016986,2]
[333986390,1722666698547,-500.0,0.00016986,2]
[333986391,1722666698556,-920.3,0.00016986,2]
[333986392,1722666698566,-151.0,0.00016986,2]
[333986393,1722666698576,-151.0,0.00016986,2]
[333986394,1722666698586,-500.0,0.00016986,2]
[333986395,1722666698596,-3017.99,0.00016986,2]
[333986396,1722666698605,-500.0,0.00016986,2]
[333986397,1722666698615,-1976.61,0.00016986,2]
[333986398,1722666698625,-980.35,0.00016986,2]
[333986399,1722666698635,-500.0,0.00016986,2]
[333986400,1722666698647,-151.0,0.00016986,2]
[333986401,1722666698657,-500.0,0.00016986,2]
[333986402,1722666698667,-2347.93,0.00016986,2]
[333986403,1722666698677,-208.758988,0.00016986,2]
[333986404,1722666698687,-3028.02,0.00016986,2]
[333986405,1722666698698,-2404.697468,0.00016986,2]
[333986406,1722666698708,-500.0,0.00016986,2]
[333986407,1722666698720,-1182.86,0.00016986,2]
[333986408,1722666698729,-1315.97,0.00016986,2]
[333986409,1722666698738,-663.52,0.00016986,2]
[333986410,1722666698748,-1429.57,0.00016986,2]
[333986411,1722666698758,-1009.6,0.00016986,2]
[333986412,1722666698768,-500.0,0.00016986,2]
[333986413,1722666698778,-502.34549501,0.00016986,2]
[333986414,1722666698788,-535.59,0.00016986,2]
[333986415,1722666698797,-500.0,0.00016986,2]
[333986416,1722666698808,-2404.697468,0.00016986,2]
[333986417,1722666698818,-1659.64,0.00016986,2]
[333986418,1722666698827,-500.0,0.00016986,2]
[333986419,1722666698836,-2820.52,0.00016986,2]
[333986420,1722666698845,-2112.36,0.00016986,2]
[333986421,1722666698854,-2096.17,0.00016986,2]
[333986422,1722666698863,-2404.697468,0.00016986,2]
[333986423,1722666698873,-4031.55,0.00016986,2]
[333986424,1722666698883,-2404.697468,0.00016986,2]
[333986425,1722666698893,-1049.02,0.00016986,2]
[333986426,1722666698903,-500.0,0.00016986,2]
[333986427,1722666698913,-500.0,0.00016986,2]
[333986428,1722666698924,-10150.27,0.00016986,2]
[333986429,1722666698933,-500.0,0.00016986,2]
[333986430,1722666698944,-1206.49,0.00016986,2]
[333986431,1722666698953,-1122.59,0.00016986,2]
[333986432,1722666698963,-500.0,0.00016986,2]
[333986433,1722666698973,-576.06,0.00016986,2]
[333986434,1722666698984,-1726.0,0.00016986,2]
[333986435,1722666698994,-500.0,0.00016986,2]
[333986436,1722666699003,-177.049888,0.00016986,2]
[333986437,1722666699013,-500.0,0.00016986,2]
[333986438,1722666699023,-793.05,0.00016986,2]
[333986439,1722666699033,-177.049888,0.00016986,2]
[333986440,1722666699043,-3672.81,0.00016986,2]
[333986441,1722666699053,-3286.16,0.00016986,2]
[333986442,1722666699062,-1612.0,0.00016986,2]
[333986443,1722666699072,-512.09171441,0.00016986,2]
[333986444,1722666699082,-500.0,0.00016986,2]
[333986445,1722666699091,-3453.65,0.00016986,2]
[333986446,1722666699101,-500.0,0.00016986,2]
[333986447,1722666699111,-15160.97,0.00016986,2]
[333986448,1722666699121,-500.0,0.00016986,2]
[333986449,1722666699130,-384.98737422,0.00016986,2]
[333986450,1722666699140,-1516.13,0.00016986,2]
[333986451,1722666699153,-228.042973,0.00016986,2]
[333986452,1722666699163,-1177.76,0.00016986,2]
[333986453,1722666699172,-228.042973,0.00016986,2]
[333986454,1722666699182,-500.0,0.00016986,2]
[333986455,1722666699191,-1029.84,0.00016986,2]
[333986456,1722666699202,-177.049888,0.00016986,2]
[333986457,1722666699211,-177.049888,0.00016986,2]
[333986458,1722666699221,-151.0,0.00016986,2]
[333986459,1722666699230,-681.33,0.00016986,2]
[333986460,1722666699240,-151.0,0.00016986,2]
[333986461,1722666699250,-7716.14,0.00016986,2]
[333986462,1722666699399,-519.64430816,0.00016986,2]
[333986463,1722666699410,-500.0,0.00016986,2]
[333986464,1722666699420,-2110.03,0.00016986,2]
[333986465,1722666699429,-501.04717059,0.00016986,2]
[333986466,1722666699440,-291.538366,0.00016986,2]
[333986467,1722666699450,-228.042973,0.00016986,2]
[333986468,1722666699460,-291.538366,0.00016986,2]
[333986469,1722666699470,-228.042973,0.00016986,2]
[333986470,1722666699480,-1577.4,0.00016986,2]
[333986471,1722666699489,-5511.15,0.00016986,2]
[333986472,1722666699499,-500.0,0.00016986,2]
[333986473,1722666699508,-500.0,0.00016986,2]
[333986474,1722666699518,-797.55,0.00016986,2]
[333986475,1722666699527,-500.0,0.00016986,2]
[333986476,1722666699537,-291.538366,0.00016986,2]
[333986477,1722666699546,-1050.57,0.00016986,2]
[333986478,1722666699555,-291.538366,0.00016986,2]
[333986479,1722666699565,-2534.68,0.00016986,2]
[333986480,1722666699574,-197.11434949,0.00016986,2]
[333986481,1722666699584,-500.0,0.00016986,2]
[333986482,1722666699593,-500.0,0.00016986,2]
[333986483,1722666699602,-2306.35,0.00016986,2]
[333986484,1722666699612,-3191.49,0.00016986,2]
[333986485,1722666699621,-500.0,0.00016986,2]
[333986486,1722666699631,-681.76,0.00016986,2]
[333986487,1722666699642,-500.0,0.00016986,2]
[333986488,1722666699651,-517.29,0.00016986,2]
[333986489,1722666699661,-2590.66,0.00016986,2]
[333986490,1722666699670,-500.0,0.00016986,2]
[333986491,1722666699680,-500.0,0.00016986,2]
[333986492,1722666699689,-2269.33,0.00016986,2]
[333986493,1722666699698,-500.0,0.00016986,2]
[333986494,1722666699708,-4486.63,0.00016986,2]
[333986495,1722666699720,-571.15,0.00016986,2]
[333986496,1722666699730,-1395.7,0.00016986,2]
[333986497,1722666699739,-500.0,0.00016986,2]
[333986498,1722666699748,-927.9,0.00016986,2]
[333986499,1722666699757,-2172.92,0.00016986,2]
[333986500,1722666699767,-642.08,0.00016986,2]
[333986501,1722666699776,-500.0,0.00016986,2]
[333986502,1722666699786,-500.0,0.00016986,2]
[333986503,1722666699795,-513.58247325,0.00016986,2]
[333986504,1722666699804,-500.0,0.00016986,2]
[333986505,1722666699814,-1875.47,0.00016986,2]
[333986506,1722666699824,-500.0,0.00016986,2]
[333986507,1722666699833,-500.0,0.00016986,2]
[333986508,1722666699842,-551.94,0.00016986,2]
[333986509,1722666699851,-1703.59,0.00016986,2]
[333986510,1722666699861,-1746.66,0.00016986,2]
[333986511,1722666699870,-510.30768642,0.00016986,2]
[333986512,1722666699880,-500.0,0.00016986,2]
[333986513,1722666699889,-784.82,0.00016986,2]
[333986514,1722666699898,-849.08,0.00016986,2]
[333986515,1722666699907,-591.2,0.00016986,2]
[333986516,1722666699916,-3768.21,0.00016986,2]
[333986517,1722666699926,-500.0,0.00016986,2]
[333986518,1722666699935,-500.0,0.00016986,2]
[333986519,1722666699946,-876.21,0.00016986,2]
[333986520,1722666699957,-400.0,0.00016986,2]
[333986521,1722666699966,-500.0,0.00016986,2]
[333986522,1722666699975,-3769.02,0.00016986,2]
[333986523,1722666699984,-1805.68,0.00016986,2]
[333986524,1722666699993,-504.63068425,0.00016986,2]
[333986525,1722666700002,-2265.81,0.00016986,2]
[333986526,1722666700011,-514.29242803,0.00016986,2]
[333986527,1722666700020,-500.0,0.00016986,2]
[333986528,1722666700029,-500.0,0.00016986,2]
[333986529,1722666700038,-824.9,0.00016986,2]
[333986530,1722666700048,-614.94,0.00016986,2]
[333986531,1722666700057,-500.0,0.00016986,2]
[333986532,1722666700066,-1540.49,0.00016986,2]
[333986533,1722666700076,-3464.14,0.00016986,2]
[333986534,1722666700086,-3761.09,0.00016986,2]
[333986535,1722666700095,-5639.15,0.00016986,2]
[333986536,1722666700104,-500.0,0.00016986,2]
[333986537,1722666700114,-2239.27,0.00016986,2]
[333986538,1722666700123,-617.86,0.00016986,2]
[333986539,1722666700132,-650.38,0.00016986,2]
[333986540,1722666700141,-991.2,0.00016986,2]
[333986541,1722666700151,-500.0,0.00016986,2]
[333986542,1722666700160,-509.46133419,0.00016986,2]
[333986543,1722666700169,-3794.93,0.00016986,2]
[333986544,1722666700178,-503.76993791,0.00016986,2]
[333986545,1722666700187,-500.0,0.00016986,2]
[333986546,1722666700198,-6154.67,0.00016986,2]
[333986547,1722666700207,-610.3,0.00016986,2]
[333986548,1722666700217,-1846.35,0.00016986,2]
[333986549,1722666700226,-2062.14,0.00016986,2]
[333986550,1722666700236,-7006.55,0.00016986,2]
[333986551,1722666700245,-500.0,0.00016986,2]
[333986552,1722666700254,-654.74,0.00016986,2]
[333986553,1722666700264,-500.0,0.00016986,2]
[333986554,1722666700273,-511.70658869,0.00016986,2]
[333986555,1722666700282,-2260.06,0.00016986,2]
[333986556,1722666700291,-1671.01,0.00016986,2]
[333986557,1722666700301,-810.7,0.00016986,2]
[333986558,1722666700310,-513.33720114,0.00016986,2]
[333986559,1722666700319,-2426.51,0.00016986,2]
[333986560,1722666700329,-500.0,0.00016986,2]
[333986561,1722666700338,-500.0,0.00016986,2]
[333986562,1722666700347,-9425.49,0.00016986,2]
[333986563,1722666700356,-1017.09,0.00016986,2]
[333986564,1722666700365,-500.0,0.00016986,2]
[333986565,1722666700375,-706.97,0.00016986,2]
[333986566,1722666700384,-507.05342701,0.00016986,2]
[333986567,1722666700393,-917.582305,0.00016986,2]
[333986568,1722666700403,-9197.15,0.00016986,2]
[333986569,1722666700413,-917.582305,0.00016986,2]
[333986570,1722666700422,-1431.9,0.00016986,2]
[333986571,1722666700432,-18960.81,0.00016986,2]
[333986572,1722666700442,-500.0,0.00016986,2]
[333986573,1722666700452,-500.0,0.00016986,2]
[333986574,1722666700462,-500.0,0.00016986,2]
[333986575,1722666700471,-803.92,0.00016986,2]
[333986576,1722666700480,-2204.57,0.00016986,2]
[333986577,1722666700490,-500.0,0.00016986,2]
[333986578,1722666700499,-500.0,0.00016986,2]
[333986579,1722666700508,-666.06,0.00016986,2]
[333986580,1722666700518,-500.0,0.00016986,2]
[333986581,1722666700527,-917.582305,0.00016986,2]
[333986582,1722666700536,-684.75,0.00016986,2]
[333986583,1722666700545,-917.582305,0.00016986,2]
[333986584,1722666700555,-1958.7,0.00016986,2]
[333986585,1722666700564,-2126.17,0.00016986,2]
[333986586,1722666700573,-2113.7,0.00016986,2]
[333986587,1722666700583,-500.0,0.00016986,2]
[333986588,1722666700592,-876.59,0.00016986,2]
[333986589,1722666700602,-628.9818,0.00016986,2]
[333986590,1722666700611,-580.14,0.00016986,2]
[333986591,1722666700621,-628.9818,0.00016986,2]
[333986592,1722666700631,-3958.71,0.00016986,2]
[333986593,1722666700644,-1366.09,0.00016986,2]
[333986594,1722666700654,-628.9818,0.00016986,2]
[333986595,1722666700663,-500.0,0.00016986,2]
[333986596,1722666700672,-1636.82,0.00016986,2]
[333986597,1722666700682,-3068.73,0.00016986,2]
[333986598,1722666700691,-628.9818,0.00016986,2]
[333986599,1722666700702,-500.0,0.00016986,2]
[333986600,1722666700711,-500.0,0.00016986,2]
[333986601,1722666700721,-684.008137,0.00016986,2]
[333986602,1722666700731,-1915.63,0.00016986,2]
[333986603,1722666700740,-684.008137,0.00016986,2]
[333986604,1722666700749,-2609.6,0.00016986,2]
[333986605,1722666700759,-500.0,0.00016986,2]
[333986606,1722666700768,-1156.97,0.00016986,2]
[333986607,1722666700778,-500.0,0.00016986,2]
[333986608,1722666700787,-1837.83,0.00016986,2]
[333986609,1722666700796,-500.0,0.00016986,2]
[333986610,1722666700805,-735.07,0.00016986,2]
[333986611,1722666700814,-500.0,0.00016986,2]
[333986612,1722666700823,-583.63,0.00016986,2]
[333986613,1722666700832,-684.008137,0.00016986,2]
[333986614,1722666700843,-511.14734267,0.00016986,2]
[333986615,1722666700853,-684.008137,0.00016986,2]
[333986616,1722666700863,-500.0,0.00016986,2]
[333986617,1722666700874,-588.28576087,0.00016986,2]
[333986618,1722666700883,-664.37,0.00016986,2]
[333986619,1722666700892,-651.05,0.00016986,2]
[333986620,1722666700901,-508.55642192,0.00016986,2]
[333986621,1722666700911,-2322.65,0.00016986,2]
[333986622,1722666700920,-500.0,0.00016986,2]
[333986623,1722666700930,-509.77942143,0.00016986,2]
[333986624,1722666700939,-1304.49,0.00016986,2]
[333986625,1722666700948,-1780.87,0.00016986,2]
[333986626,1722666700958,-500.0,0.00016986,2]
[333986627,1722666700967,-500.0,0.00016986,2]
[333986628,1722666700976,-3594.13,0.00016986,2]
[333986629,1722666700985,-507.54811279,0.00016986,2]
[333986630,1722666700994,-1004.22,0.00016986,2]
[333986631,1722666701003,-500.0,0.00016986,2]
[333986632,1722666701017,-2603.67,0.00016986,2]
[333986633,1722666701026,-685.3,0.00016986,2]
[333986634,1722666701035,-1360.09,0.00016986,2]
[333986635,1722666701045,-552.42,0.00016986,2]
[333986636,1722666701055,-726.19940663,0.00016986,2]
[333986637,1722666701064,-3118.19667245,0.00016999,2]
[333986638,1722666701074,-500.0,0.00017,7]
[333986639,1722666701083,-3118.19667245,0.00017004,2]
[333986640,1722666701092,-3407.07831721,0.00017004,2]
[333986641,1722666701101,-2144.08330696,0.00017004,2]
[333986642,1722666701110,-152.15849651,0.00017014,2]
[333986643,1722666701120,-150.0,0.00017018,2]
[333986644,1722666701129,-428.86,0.00017018,2]
[333986645,1722666701141,-300.0,0.00017018,2]
[333986646,1722666701150,-356.11,0.00017018,2]
[333986647,1722666701159,-425.87,0.00017018,2]
[333986648,1722666701168,-712.22,0.00017018,2]
[333986649,1722666701179,-300.098,0.0001704,2]
[333986650,1722666701190,-726.19940663,0.00017068,2]
[333986651,1722666701201,-245.11283,0.00017116,2]
[333986652,1722666701210,-183.189171,0.00017116,2]
[333986653,1722666701220,-323.811851,0.00017116,2]
[333986654,1722666701230,-3715.052926,0.00017116,2]
[333986655,1722666701240,-354.400775,0.00017116,2]
[333986656,1722666701250,-14547.490637,0.00017116,2]
[333986657,1722666701260,-180.094784,0.00017116,2]
[333986658,1722666701270,-17206.65622,0.00017116,2]
[333986659,1722666701280,-175.910904,0.00017116,2]
[333986660,1722666701290,-204.979459,0.00017116,2]
[333986661,1722666701299,-207.752414,0.00017116,2]
[333986662,1722666701309,-651.656202,0.00017116,2]
[333986663,1722666701318,-840.837562,0.00017116,2]
[333986664,1722666701328,-1457.984716,0.00017116,2]
[333986665,1722666701337,-171.653808,0.00017116,2]
[333986666,1722666701347,-1393.789355,0.00017116,2]
[333986667,1722666701357,-2343.964015,0.00017116,2]
[333986668,1722666701367,-187.924995,0.00017116,2]
[333986669,1722666701377,-731.610229,0.00017116,2]
[333986670,1722666701387,-706.352109,0.00017116,2]
[333986671,1722666701397,-168.224889,0.00017116,2]
[333986672,1722666701407,-163.983566,0.00017116,2]
[333986673,1722666701417,-766.2961,0.00017116,2]
[333986674,1722666701427,-739.788836,0.00017116,2]
[333986675,1722666701436,-204.243847,0.00017116,2]
[333986676,1722666701446,-169.132492,0.00017116,2]
[333986677,1722666701456,-345.044234,0.00017116,2]
[333986678,1722666701466,-151.0,0.00017116,2]
[333986679,1722666701475,-466.122221,0.00017116,2]
[333986680,1722666701485,-466.122221,0.00017116,2]
[333986681,1722666701494,-800.028529,0.00017116,2]
[333986682,1722666701504,-800.028529,0.00017116,2]
[333986683,1722666701514,-525.679238,0.00017116,2]
[333986684,1722666701524,-525.679238,0.00017116,2]
[333986685,1722666701533,-2054.066293,0.00017116,2]
[333986686,1722666701543,-726.19940663,0.00017123,2]
[333986687,1722666701553,-152.15849651,0.00017123,2]
[333986688,1722666701562,-1017.76293735,0.00017128,2]
[333986689,1722666701572,-165.67,0.00017151,2]
[333986690,1722666701581,-203.0,0.0001718,2]
[333986691,1722666701590,-200.0,0.0001718,2]
[333986692,1722666701599,-200.0,0.0001718,2]
[333986693,1722666701609,-201.0,0.0001718,2]
[333986694,1722666701618,-1182.6892091,0.000172,2]
[333986695,1722666701629,-726.19940663,0.00017205,2]
[333986696,1722666701643,-152.15849651,0.00017205,2]
[333986697,1722666701652,-935.2271765,0.00017248,2]
[333986698,1722666701662,-20265.5861272,0.00017248,2]
[333986699,1722666701671,-261.2691716,0.00017248,2]
[333986700,1722666701682,-1183.9884176,0.00017248,2]
[333986701,1722666701691,-492.8099991,0.00017248,2]
[333986702,1722666701703,-126251.46191037,0.0001725,2]
[333986703,1722666701715,-151.0,0.0001725,2]
[333986704,1722666701724,-980.506918,0.0001725,2]
[333986705,1722666701734,-164.92012,0.0001725,2]
[333986706,1722666701743,-980.506918,0.0001725,2]
[333986707,1722666701753,-164.92012,0.0001725,2]
[333986708,1722666701762,-151.0,0.0001725,2]
[333986709,1722666701773,-372.150765,0.0001725,2]
[333986710,1722666701783,-151.0,0.0001725,2]
[333986711,1722666701793,-151.0,0.0001725,2]
[333986712,1722666701803,-372.150765,0.0001725,2]
[333986713,1722666701813,-152.082932,0.0001725,2]
[333986714,1722666701823,-152.082932,0.0001725,2]
[333986715,1722666701832,-151.0,0.0001725,2]
[333986716,1722666701842,-151.0,0.0001725,2]
[333986717,1722666701852,-2130.919257,0.0001725,2]
[333986718,1722666701861,-2130.919257,0.0001725,2]
[333986719,1722666701871,-917.582305,0.0001725,2]
[333986720,1722666701880,-917.582305,0.0001725,2]
[333986721,1722666701890,-684.008137,0.0001725,2]
[333986722,1722666701900,-684.008137,0.0001725,2]
[333986723,1722666701910,-1186.00612709,0.00017259,2]
[333986724,1722666701919,-151.0,0.0001726,2]
[333986725,1722666701929,-509.32823785,0.0001726,2]
[333986726,1722666701940,-151.0,0.0001726,2]
[333986727,1722666701953,-151.0,0.0001726,2]
[333986728,1722666701962,-151.0,0.0001726,2]
[333986729,1722666701974,-151.0,0.0001726,2]
[333986730,1722666701984,-500.0,0.0001726,2]
[333986731,1722666701993,-500.0,0.0001726,2]
[333986732,1722666702003,-500.0,0.0001726,2]
[333986733,1722666702013,-989.73,0.0001726,2]
[333986734,1722666702023,-788.91,0.0001726,2]
[333986735,1722666702032,-500.0,0.0001726,2]
[333986736,1722666702042,-500.0,0.0001726,2]
[333986737,1722666702051,-237.05,0.0001726,2]
[333986738,1722666702062,-237.05,0.0001726,2]
[333986739,1722666702071,-237.05,0.0001726,2]
[333986740,1722666702081,-237.05,0.0001726,2]
[333986741,1722666702091,-500.0,0.0001726,2]
[333986742,1722666702100,-788.504572,0.0001726,2]
[333986743,1722666702110,-788.504572,0.0001726,2]
[333986744,1722666702120,-788.504572,0.0001726,2]